bitfinex/quotes_SOLUSD_20250414
["timestamp","ask_amount","ask_price","bid_price","bid_amount"]
[1744651049352,0.03,129.54,129.49,13.9822]
[1744651049549,0.03,129.54,129.52,27.42242522]
[1744651049860,0.03,129.54,129.51,27.42242522]
[1744651050160,0.03,129.54,129.51,35.14372522]
[1744651050370,0.03,129.54,129.51,7.7213]
[1744651050538,0.03,129.54,129.51,27.42242522]
[1744651050945,0.03,129.54,129.52,27.42242522]
[1744651052869,0.03,129.54,129.52,35.14312522]
[1744651053555,0.03,129.54,129.52,27.42242522]
[1744651053964,0.03,129.54,129.53,27.42242522]
[1744651054967,0.03,129.54,129.53,35.14262522]
[1744651055274,0.03,129.54,129.53,63.27585829]
[1744651058259,0.03,129.54,129.53,81.92550715]
[1744651059370,0.03,129.56,129.55,78.08767408]
[1744651060458,0.03,129.56,129.55,85.80667408]
[1744651062053,0.03,129.56,129.55,67.15702522]
[1744651062676,0.03,129.56,129.55,27.42242522]
[1744651062854,0.03,129.56,129.53,27.42242522]
[1744651064272,0.03,129.56,129.53,35.14252522]
[1744651064471,0.03,129.56,129.53,27.42242522]
[1744651064982,0.03,129.56,129.54,27.42242522]
[1744651065162,0.03,129.56,129.55,27.42242522]
[1744651066374,0.03,129.56,129.55,35.14142522]
[1744651066760,0.03,129.56,129.55,27.42242522]
[1744651066961,0.03,129.56,129.55,35.14142522]
[1744651068177,0.03,129.56,129.55,27.42242522]
[1744651068798,0.03,129.56,129.55,35.14142522]
[1744651069179,0.03,129.56,129.55,27.42242522]
[1744651069982,0.03,129.56,129.54,27.42242522]
[1744651070298,0.03,129.56,129.52,35.14292522]
[1744651070594,27.42242522,129.54,129.49,41.77272522]
[1744651070895,27.45242522,129.56,129.51,27.42242522]
[1744651071072,27.45242522,129.56,129.49,14.3503]
[1744651071073,0.03,129.56,129.55,27.42242522]
[1744651071278,27.45242522,129.56,129.5,0.28432314]
[1744651071579,27.45242522,129.56,129.51,27.42242522]
[1744651072292,35.14142522,129.55,129.51,27.42242522]
[1744651072672,27.42242522,129.53,129.47,1.5883]
[1744651072890,27.42242522,129.52,129.48,0.063]
[1744651073198,27.42242522,129.51,129.48,0.063]
[1744651073870,27.42242522,129.49,129.48,0.063]
[1744651074288,35.14502522,129.49,129.48,0.063]
[1744651075289,35.14452522,129.5,129.48,0.063]
[1744651075599,27.42242522,129.49,129.48,0.063]
[1744651075891,46.07207408,129.49,129.48,0.063]
[1744651076190,27.42242522,129.49,129.48,0.063]
[1744651076489,35.14502522,129.49,129.48,0.063]
[1744651077096,27.42242522,129.5,129.48,0.063]
[1744651077398,27.42242522,129.52,129.48,27.48542522]
[1744651077599,27.42242522,129.5,129.48,0.063]
[1744651077976,46.07207408,129.49,129.48,0.063]
[1744651078173,27.42242522,129.49,129.48,0.063]
[1744651078388,35.14502522,129.49,129.48,0.063]
[1744651078886,27.42242522,129.49,129.48,0.063]
[1744651080167,27.42242522,129.5,129.48,0.063]
[1744651081201,80.8,129.53,129.48,27.48542522]
[1744651081377,80.8,129.53,129.5,27.42242522]
[1744651082089,80.8,129.54,129.5,27.42242522]
[1744651082278,80.8,129.54,129.51,27.42242522]
[1744651083985,80.8,129.54,129.5,27.42242522]
[1744651084678,80.8,129.54,129.48,0.063]
[1744651084679,27.42242522,129.52,129.48,0.063]
[1744651084993,108.22242522,129.51,129.48,0.063]
[1744651085191,80.8,129.51,129.48,0.063]
[1744651085389,27.42242522,129.5,129.48,0.063]
[1744651086097,108.22242522,129.51,129.48,0.063]
[1744651086298,80.8,129.51,129.48,0.063]
[1744651087085,80.8,129.51,129.48,7.7862]
[1744651087395,80.8,129.51,129.49,27.42242522]
[1744651087784,80.8,129.51,129.48,35.20862522]
[1744651089693,80.8,129.51,129.49,27.42242522]
[1744651090297,80.8,129.51,129.48,35.20862522]
[1744651091328,80.8,129.51,129.48,0.063]
[1744651091875,108.22242522,129.51,129.48,0.063]
[1744651093707,108.22242522,129.5,129.48,0.063]
[1744651093911,27.42242522,129.49,129.48,0.063]
[1744651094909,80.8,129.5,129.48,0.063]
[1744651095082,80.8,129.5,129.48,27.48542522]
[1744651095490,80.8,129.5,129.48,0.063]
[1744651097016,80.8,129.5,129.48,27.48542522]
[1744651097179,80.8,129.5,129.48,0.063]
[1744651098206,80.8,129.5,129.48,27.48542522]
[1744651098847,80.8,129.5,129.48,0.063]
[1744651099883,108.22242522,129.5,129.48,0.063]
[1744651100083,80.8,129.5,129.48,0.063]
[1744651100710,46.07207408,129.49,129.48,0.063]
[1744651101019,46.64072036,129.49,129.48,0.063]
[1744651101220,36.39522884,129.49,129.48,0.063]
[1744651101711,8.02,129.5,129.48,0.063]
[1744651101915,18.64964886,129.5,129.48,0.063]
[1744651102114,18.64964886,129.52,129.48,0.063]
[1744651102315,17.1769337,129.52,129.48,0.063]
[1744651102489,17.1769337,129.51,129.48,0.063]
[1744651102908,35.82658256,129.52,129.48,0.063]
[1744651103086,35.82658256,129.52,129.48,17.2399337]
[1744651103087,17.1769337,129.52,129.48,17.2399337]
[1744651103411,25.1969337,129.54,129.49,17.1769337]
[1744651103606,17.1769337,129.53,129.49,17.1769337]
[1744651104610,25.1969337,129.54,129.49,24.8990337]
[1744651105205,27.45709519,129.54,129.49,35.17919519]
[1744651107820,27.45709519,129.53,129.48,35.24299519]
[1744651107994,27.45709519,129.52,129.48,7.7859]
[1744651108397,27.45709519,129.54,129.49,27.45709519]
[1744651108615,80.8,129.53,129.5,27.45709519]
[1744651109224,80.8,129.53,129.51,27.45709519]
[1744651109396,80.8,129.55,129.51,27.45709519]
[1744651109591,80.8,129.55,129.52,7.7208]
[1744651109905,80.8,129.55,129.52,35.17789519]
[1744651110318,80.8,129.55,129.53,27.45709519]
[1744651110727,80.8,129.55,129.52,35.17789519]
[1744651110928,80.8,129.55,129.54,27.45709519]
[1744651111110,0.03,129.56,129.54,27.45709519]
[1744651111302,0.03,129.56,129.55,27.45709519]
[1744651111706,0.03,129.56,129.55,35.17609519]
[1744651112127,0.03,129.56,129.55,7.719]
[1744651112329,0.03,129.56,129.54,7.7193]
[1744651112708,0.03,129.56,129.55,27.45709519]
[1744651112938,0.03,129.56,129.54,35.17639519]
[1744651113843,0.03,129.56,129.55,27.45709519]
[1744651115843,0.03,129.56,129.54,27.45709519]
[1744651116548,0.03,129.56,129.55,27.45709519]
[1744651117847,0.03,129.59,129.57,1.5351]
[1744651118034,0.03,129.59,129.58,27.45709519]
[1744651118531,0.03,129.59,129.58,28.16790304]
[1744651119137,0.03,129.59,129.57,7.9182]
[1744651119541,0.03,129.59,129.57,35.37529519]
[1744651120138,0.03,129.59,129.58,7.7172]
[1744651122953,0.03,129.59,129.58,35.17429519]
[1744651124346,0.03,129.59,129.55,7.719]
[1744651124545,0.03,129.59,129.56,27.45709519]
[1744651124949,0.03,129.59,129.57,27.45709519]
[1744651125544,0.03,129.59,129.56,27.45709519]
[1744651126259,0.03,129.59,129.57,27.45709519]
[1744651126858,0.03,129.59,129.57,35.17439519]
[1744651127354,0.03,129.59,129.57,24.85720863]
[1744651128962,0.03,129.59,129.57,7.7173]
[1744651131256,0.03,129.59,129.57,24.85720863]
[1744651133270,0.03,129.59,129.58,17.13990863]
[1744651133575,0.03,129.59,129.57,24.85720863]
[1744651134562,0.03,129.59,129.58,17.13990863]
[1744651135270,0.03,129.6,129.58,25.56791648]
[1744651135441,0.03,129.6,129.59,17.13990863]
[1744651136474,0.03,129.62,129.61,26.0]
[1744651136779,0.03,129.65,129.63,0.28432314]
[1744651136949,0.03,129.65,129.64,17.85071648]
[1744651137148,0.03,129.65,129.64,25.56431648]
[1744651137839,0.03,129.65,129.64,44.21396534]
[1744651138147,88.8,129.74,129.65,61.59167397]
[1744651138539,88.8,129.74,129.67,0.56864628]
[1744651138758,80.8,129.74,129.7,17.13990863]
[1744651139153,80.8,129.74,129.7,27.3658112]
[1744651139745,80.8,129.74,129.71,27.3658112]
[1744651140568,80.8,129.74,129.7,27.3658112]
[1744651141143,80.8,129.74,129.67,19.2793]
[1744651141351,80.8,129.74,129.68,27.3658112]
[1744651141352,27.3658112,129.73,129.68,27.3658112]
[1744651142183,80.8,129.74,129.68,27.3658112]
[1744651142473,108.1658112,129.74,129.69,27.3658112]
[1744651142983,27.3658112,129.73,129.68,27.3658112]
[1744651143153,80.8,129.74,129.7,27.3658112]
[1744651143472,80.8,129.74,129.72,27.3658112]
[1744651143656,80.8,129.74,129.73,27.3658112]
[1744651143864,80.8,129.74,129.72,27.3658112]
[1744651144053,80.8,129.74,129.73,27.3658112]
[1744651144389,80.8,129.74,129.73,35.0741112]
[1744651144571,80.8,129.79,129.73,35.0741112]
[1744651144755,80.8,129.79,129.75,27.3658112]
[1744651145578,108.1658112,129.79,129.74,27.3658112]
[1744651145754,27.3658112,129.78,129.73,35.0741112]
[1744651146277,27.3658112,129.78,129.74,27.3658112]
[1744651146447,108.1658112,129.79,129.74,27.3658112]
[1744651147081,80.8,129.79,129.75,27.3658112]
[1744651147285,80.8,129.79,129.76,27.3658112]
[1744651148059,108.1658112,129.79,129.74,27.3658112]
[1744651148362,80.8,129.79,129.75,35.0729112]
[1744651148675,80.8,129.79,129.76,27.3658112]
[1744651148886,108.1658112,129.79,129.75,35.0729112]
[1744651149060,108.1658112,129.79,129.75,7.7071]
[1744651149252,27.3658112,129.77,129.72,27.3658112]
[1744651149480,27.3658112,129.76,129.72,7.7089]
[1744651150259,27.3658112,129.76,129.72,35.0747112]
[1744651150774,27.3658112,129.76,129.72,7.7089]
[1744651152086,27.3658112,129.75,129.71,7.7092]
[1744651152289,27.3658112,129.75,129.65,8.0396]
[1744651152290,27.3658112,129.72,129.65,8.0396]
[1744651152586,27.3658112,129.68,129.66,7.7124]
[1744651152792,27.3658112,129.68,129.63,27.3658112]
[1744651152980,27.3658112,129.69,129.65,27.3658112]
[1744651153358,27.3658112,129.69,129.64,35.0794112]
[1744651153779,108.1658112,129.71,129.64,26.9977]
[1744651153966,108.1658112,129.71,129.66,27.3658112]
[1744651154595,108.1658112,129.71,129.67,7.7118]
[1744651155298,27.3658112,129.7,129.67,7.7118]
[1744651155585,27.3658112,129.69,129.66,7.7122]
[1744651155788,27.3658112,129.7,129.66,35.0780112]
[1744651155970,27.3658112,129.69,129.66,7.7122]
[1744651156171,27.3658112,129.7,129.66,7.7122]
[1744651157089,80.8,129.71,129.66,54.3591112]
[1744651157281,80.8,129.71,129.67,27.3658112]
[1744651157779,108.1658112,129.71,129.66,54.3591112]
[1744651158488,80.8,129.71,129.68,27.3658112]
[1744651158785,27.3658112,129.73,129.68,27.3658112]
[1744651159681,27.3658112,129.73,129.69,7.7106]
[1744651159887,80.8,129.75,129.67,27.3658112]
[1744651159888,27.3658112,129.72,129.67,27.3658112]
[1744651160087,27.3658112,129.7,129.65,35.0788112]
[1744651160387,27.3658112,129.69,129.65,7.713]
[1744651160683,27.3658112,129.7,129.65,35.0788112]
[1744651161079,27.3658112,129.69,129.65,35.0788112]
[1744651161259,27.3658112,129.69,129.65,7.713]
[1744651162581,27.3658112,129.69,129.65,35.0788112]
[1744651163185,27.3658112,129.69,129.65,7.713]
[1744651163394,27.3658112,129.69,129.64,27.3658112]
[1744651164094,27.3658112,129.69,129.65,7.713]
[1744651164467,27.3658112,129.68,129.65,7.713]
[1744651165182,27.3658112,129.69,129.65,7.713]
[1744651165488,27.3658112,129.68,129.63,27.3658112]
[1744651165704,27.3658112,129.66,129.61,27.3658112]
[1744651165985,27.3658112,129.64,129.6,35.1446112]
[1744651166585,46.01546006,129.66,129.61,27.3658112]
[1744651167301,27.3658112,129.65,129.61,27.3658112]
[1744651167475,27.3658112,129.65,129.6,35.1446112]
[1744651167991,108.1658112,129.67,129.62,27.3658112]
[1744651168291,27.3658112,129.66,129.62,27.3658112]
[1744651169197,27.3658112,129.66,129.62,35.0805112]
[1744651169795,27.3658112,129.66,129.62,7.7147]
[1744651170303,27.3658112,129.66,129.62,35.0805112]
[1744651170597,108.1658112,129.67,129.62,35.0805112]
[1744651171292,97.92413695,129.67,129.62,17.12413695]
[1744651172208,80.8,129.71,129.66,17.12413695]
[1744651172370,80.8,129.71,129.67,17.12413695]
[1744651173286,80.8,129.71,129.67,24.83573695]
[1744651173571,80.8,129.71,129.69,17.12413695]
[1744651175195,80.8,129.71,129.69,27.36939412]
[1744651175373,80.8,129.71,129.69,35.07969412]
[1744651175784,80.8,129.75,129.7,27.36939412]
[1744651175992,80.8,129.75,129.72,27.36939412]
[1744651176411,80.8,129.75,129.73,27.36939412]
[1744651176569,80.8,129.75,129.72,27.36939412]
[1744651177275,80.8,129.75,129.73,7.7083]
[1744651178691,0.03,129.77,129.73,35.07769412]
[1744651179584,27.36939412,129.76,129.71,42.71229412]
[1744651179785,27.36939412,129.73,129.68,52.94069412]
[1744651180288,27.36939412,129.74,129.69,27.36939412]
[1744651180908,80.8,129.75,129.7,27.36939412]
[1744651181088,108.16939412,129.75,129.7,27.36939412]
[1744651181420,27.36939412,129.74,129.69,35.07979412]
[1744651181786,108.16939412,129.75,129.7,27.36939412]
[1744651182388,108.16939412,129.75,129.71,7.7095]
[1744651182608,108.16939412,129.75,129.7,35.07919412]
[1744651182786,27.36939412,129.74,129.7,7.7098]
[1744651184013,27.36939412,129.71,129.68,7.711]
[1744651184209,27.36939412,129.71,129.67,36.58269412]
[1744651184405,27.36939412,129.72,129.67,36.58269412]
[1744651184795,27.36939412,129.72,129.68,27.36939412]
[1744651185206,27.36939412,129.72,129.68,35.08049412]
[1744651185919,27.36939412,129.74,129.69,27.36939412]
[1744651186086,88.78,129.75,129.71,27.36939412]
[1744651186291,80.8,129.75,129.73,27.36939412]
[1744651187328,80.8,129.75,129.73,35.07739412]
[1744651188020,80.8,129.75,129.74,27.36939412]
[1744651188622,0.03,129.77,129.74,27.36939412]
[1744651188808,0.03,129.77,129.75,27.36939412]
[1744651189518,0.03,129.77,129.75,35.07609412]
[1744651190123,0.03,129.77,129.76,27.36939412]
[1744651191326,0.03,129.77,129.75,35.07609412]
[1744651191516,0.03,129.77,129.75,7.7067]
[1744651191818,0.03,129.77,129.75,35.07609412]
[1744651193122,0.03,129.77,129.76,27.36939412]
[1744651193810,0.03,129.77,129.76,35.07589412]
[1744651194124,80.83,129.79,129.76,55.05300197]
[1744651194125,0.03,129.79,129.76,55.05300197]
[1744651194295,0.03,129.79,129.78,27.36939412]
[1744651195221,0.03,129.79,129.78,19.43185529]
[1744651195826,0.03,129.79,129.78,18.72104744]
[1744651196028,0.03,129.79,129.78,26.42634744]
[1744651197403,0.03,129.79,129.78,43.50499488]
[1744651197604,0.03,129.79,129.78,26.42634744]
[1744651200433,0.03,129.79,129.78,27.13715529]
[1744651200725,0.0001,129.79,129.78,44.21580273]
[1744651203208,0.0001,129.79,129.78,10.05850785]
[1744651203407,0.0001,129.79,129.78,27.13715529]
[1744651203719,0.0001,129.79,129.78,7.7053]
[1744651205034,0.0001,129.79,129.77,17.07864744]
[1744651205214,0.0001,129.79,129.76,24.78514744]
[1744651205416,17.07874744,129.79,129.76,7.7065]
[1744651205820,0.0001,129.79,129.76,7.7065]
[1744651206015,97.87874744,129.79,129.75,17.07864744]
[1744651206322,97.87874744,129.79,129.74,24.78594744]
[1744651206527,80.8001,129.79,129.76,17.07864744]
[1744651206838,80.8001,129.79,129.77,17.07864744]
[1744651207207,80.8001,129.79,129.78,7.7053]
[1744651208420,80.8001,129.79,129.77,7.7057]
[1744651208626,80.8001,129.79,129.77,24.78434744]
[1744651209213,0.0001,129.79,129.78,17.07864744]
[1744651211337,0.0001,129.79,129.78,24.78394744]
[1744651215535,0.0001,129.79,129.77,24.78434744]
[1744651216731,0.0001,129.79,129.78,17.07864744]
[1744651216925,0.0001,129.79,129.78,34.72594116]
[1744651217126,0.0001,129.79,129.78,41.08144116]
[1744651217451,0.0101,129.8,129.79,19.21829514]
[1744651217641,0.0101,129.8,129.79,36.29694258]
[1744651218251,0.0101,129.8,129.79,44.00164258]
[1744651221040,0.0101,129.8,129.79,45.58544258]
[1744651221344,4.9e-05,129.83,129.82,44.64964886]
[1744651221529,4.9e-05,129.83,129.82,78.80694374]
[1744651221738,4.9e-05,129.83,129.82,61.7282963]
[1744651221918,4.9e-05,129.83,129.82,43.07864744]
[1744651222320,4.9e-05,129.83,129.82,7.7029]
[1744651222840,4.9e-05,129.83,129.82,24.78154744]
[1744651223625,4.9e-05,129.83,129.82,7.7029]
[1744651223820,4.9e-05,129.83,129.81,7.7033]
[1744651224322,17.07864744,129.82,129.78,7.7053]
[1744651224519,17.07864744,129.81,129.78,7.7053]
[1744651224732,17.07864744,129.79,129.74,6.0976]
[1744651224932,17.07864744,129.79,129.75,47.07864744]
[1744651225241,17.07864744,129.8,129.75,47.07864744]
[1744651225938,17.07864744,129.8,129.75,54.78574744]
[1744651226125,18.64964886,129.82,129.76,17.07864744]
[1744651226455,80.8,129.81,129.78,17.07864744]
[1744651226621,80.8,129.81,129.77,17.07864744]
[1744651227021,80.8,129.81,129.75,27.25922314]
[1744651227022,80.8,129.81,129.78,17.07864744]
[1744651227333,17.07864744,129.79,129.75,24.78574744]
[1744651227846,17.07864744,129.78,129.75,7.7071]
[1744651228646,17.07864744,129.79,129.75,7.7071]
[1744651228838,80.8,129.81,129.78,17.07864744]
[1744651229232,80.8,129.81,129.77,17.07864744]
[1744651230345,80.8,129.81,129.78,7.7053]
[1744651230545,80.8,129.81,129.78,24.78394744]
[1744651231432,4.9e-05,129.83,129.8,17.07864744]
[1744651231830,4.9e-05,129.83,129.81,17.07864744]
[1744651232031,4.9e-05,129.83,129.8,17.07864744]
[1744651232648,4.9e-05,129.83,129.81,7.7035]
[1744651233054,4.9e-05,129.83,129.81,24.78214744]
[1744651233262,4.9e-05,129.83,129.82,17.07864744]
[1744651234630,4.9e-05,129.83,129.82,24.78154744]
[1744651235063,4.9e-05,129.83,129.82,25.35019372]
[1744651236151,4.9e-05,129.83,129.82,24.78154744]
[1744651238138,4.9e-05,129.83,129.82,7.7029]
[1744651238338,4.9e-05,129.83,129.82,24.78154744]
[1744651239260,4.9e-05,129.83,129.82,7.7029]
[1744651239465,4.9e-05,129.83,129.79,17.07864744]
[1744651239646,4.9e-05,129.83,129.8,17.07864744]
[1744651242456,4.9e-05,129.83,129.81,7.7035]
[1744651243772,4.9e-05,129.83,129.81,24.78214744]
[1744651244565,4.9e-05,129.83,129.81,7.7035]
[1744651244773,4.9e-05,129.83,129.81,24.78214744]
[1744651244977,4.9e-05,129.83,129.8,17.07864744]
[1744651245145,17.07864744,129.82,129.78,7.7053]
[1744651245349,4.9e-05,129.83,129.78,24.78394744]
[1744651245562,4.9e-05,129.83,129.8,17.07864744]
[1744651245768,4.9e-05,129.83,129.79,17.07864744]
[1744651245947,4.9e-05,129.83,129.76,7.84866157]
[1744651245948,17.07869644,129.83,129.78,17.07864744]
[1744651247459,17.07864744,129.82,129.77,17.07864744]
[1744651247662,17.07864744,129.82,129.78,17.07864744]
[1744651248174,17.07864744,129.82,129.79,7.7047]
[1744651248375,17.07869644,129.83,129.79,7.7047]
[1744651249179,17.07864744,129.82,129.78,7.705]
[1744651249379,17.07864744,129.82,129.78,24.78364744]
[1744651249563,17.07869644,129.83,129.78,24.78364744]
[1744651250070,17.07869644,129.83,129.78,17.07864744]
[1744651250279,17.07864744,129.82,129.77,24.78434744]
[1744651251674,4.9e-05,129.83,129.78,17.07864744]
[1744651251876,17.07869644,129.83,129.78,17.07864744]
[1744651252779,17.07869644,129.83,129.79,17.07864744]
[1744651252967,4.9e-05,129.83,129.8,17.07864744]
[1744651253475,4.9e-05,129.83,129.79,17.07864744]
[1744651253679,4.9e-05,129.83,129.8,17.07864744]
[1744651254976,4.9e-05,129.83,129.8,24.78234744]
[1744651255180,17.07869644,129.83,129.79,7.7044]
[1744651255674,17.07869644,129.83,129.78,24.78364744]
[1744651255980,17.07864744,129.82,129.78,7.705]
[1744651256490,17.07864744,129.82,129.77,24.78424744]
[1744651256676,6.408749,129.83,129.77,7.7056]
[1744651256881,17.07864744,129.8,129.76,7.7063]
[1744651257182,17.07864744,129.81,129.76,24.78494744]
[1744651258183,17.07864744,129.82,129.77,17.07864744]
[1744651258389,17.07864744,129.82,129.76,7.7063]
[1744651258390,17.07864744,129.82,129.78,17.07864744]
[1744651258583,4.9e-05,129.83,129.8,17.07864744]
[1744651258957,4.9e-05,129.83,129.81,24.78214744]
[1744651260579,4.9e-05,129.83,129.8,7.7038]
[1744651260767,4.9e-05,129.83,129.8,24.78244744]
[1744651264991,4.9e-05,129.83,129.82,17.07864744]
[1744651265790,4.9e-05,129.84,129.83,0.28432314]
[1744651265967,4.9e-05,129.84,129.83,41.05244116]
[1744651266170,4.9e-05,129.84,129.83,31.67609372]
[1744651268872,4.9e-05,129.84,129.83,14.59744628]
[1744651269191,4.9e-05,129.84,129.83,25.34959372]
[1744651269570,4.9e-05,129.84,129.83,24.78094744]
[1744651271069,4.9e-05,129.84,129.83,61.07789002]
[1744651271271,4.9e-05,129.84,129.83,62.68109002]
[1744651274186,4.9e-05,129.84,129.83,70.60109002]
[1744651274385,0.03,129.86,129.85,17.64729372]
[1744651274896,0.0001,129.86,129.85,42.41688501]
[1744651275198,6.566e-05,129.87,129.85,42.41688501]
[1744651275414,6.566e-05,129.87,129.86,17.64729372]
[1744651275994,6.566e-05,129.87,129.86,25.34789372]
[1744651280019,80.8,129.93,129.88,0.56864628]
[1744651280222,80.8,129.97,129.92,17.07864744]
[1744651280430,80.8,129.97,129.95,17.07864744]
[1744651280796,80.8,129.97,129.91,0.56864628]
[1744651280797,8.0661,130.01,129.96,17.07864744]
[1744651281104,8.0661,130.01,129.98,17.07864744]
[1744651281419,97.87864744,130.02,129.97,17.07864744]
[1744651281604,80.8,130.02,129.96,26.0]
[1744651281804,97.87864744,130.02,129.97,17.07864744]
[1744651282022,97.87864744,130.02,129.98,7.6934]
[1744651282408,80.8,130.02,129.99,17.07864744]
[1744651282604,80.8,130.02,130.0,17.07864744]
[1744651283107,80.8,130.02,129.98,26.9271]
[1744651283417,17.07864744,130.06,130.01,17.07864744]
[1744651283713,2.724849,130.08,129.98,26.9271]
[1744651283714,17.07864744,130.03,129.98,26.9271]
[1744651283918,17.07864744,130.01,129.98,7.6934]
[1744651284212,17.07864744,130.02,129.97,24.77264744]
[1744651284805,1.5966,130.03,129.97,7.694]
[1744651285118,6.4904,130.04,129.99,17.07864744]
[1744651285298,23.56904744,130.04,129.99,17.07864744]
[1744651285492,17.07864744,130.03,129.97,7.694]
[1744651285692,17.07864744,130.02,129.97,24.77264744]
[1744651285898,17.07864744,130.03,129.98,17.07864744]
[1744651286191,17.07864744,130.0,129.95,24.77384744]
[1744651286817,17.07864744,129.99,129.95,7.6952]
[1744651287201,17.07864744,129.96,129.93,7.6962]
[1744651287606,17.07864744,129.97,129.93,7.6962]
[1744651287920,17.07864744,129.95,129.91,7.6971]
[1744651288118,17.07864744,129.96,129.91,7.6971]
[1744651288428,86.9833,129.98,129.93,17.07864744]
[1744651288610,86.9833,129.98,129.91,7.6971]
[1744651288611,80.8,129.98,129.96,17.07864744]
[1744651288812,18.62784744,130.01,129.96,17.07864744]
[1744651288998,80.8,130.02,129.97,17.07864744]
[1744651289417,97.87864744,130.02,129.97,17.07864744]
[1744651289616,17.07864744,130.01,129.97,17.07864744]
[1744651290406,17.07864744,130.01,129.98,7.6934]
[1744651290609,17.07864744,130.01,129.96,7.6946]
[1744651290797,97.87864744,130.02,129.97,17.07864744]
[1744651291099,80.8,130.02,129.99,17.07864744]
[1744651291719,80.8,130.02,129.98,17.07864744]
[1744651291928,17.07864744,130.01,129.96,26.9312]
[1744651292134,17.07864744,130.0,129.96,24.77324744]
[1744651292928,88.4911,130.02,129.96,24.77324744]
[1744651293223,17.07864744,130.0,129.96,24.77324744]
[1744651293726,17.07864744,129.98,129.95,7.695]
[1744651294697,17.07864744,129.98,129.94,7.6956]
[1744651295025,17.07864744,129.97,129.94,7.6956]
[1744651295230,17.07864744,129.98,129.94,7.6956]
[1744651295610,17.07864744,129.99,129.94,24.77424744]
[1744651295798,24.97864744,130.01,129.96,17.07864744]
[1744651296507,24.97864744,130.01,129.97,17.07864744]
[1744651296707,80.8,130.02,129.98,17.07864744]
[1744651296909,80.8,130.02,129.99,17.07864744]
[1744651297104,80.8,130.02,130.01,17.07864744]
[1744651297298,6.1969,130.07,130.01,17.07864744]
[1744651297617,17.07864744,130.06,130.01,24.76994744]
[1744651297826,17.07864744,130.04,129.99,17.07864744]
[1744651298723,17.07864744,130.04,130.0,17.07864744]
[1744651299125,80.8,130.05,130.02,17.07864744]
[1744651299320,80.8,130.05,130.04,17.07864744]
[1744651299826,80.8,130.05,130.03,17.07864744]
[1744651300025,80.8,130.05,130.02,17.07864744]
[1744651300527,80.8,130.05,130.03,17.07864744]
[1744651301130,80.8,130.05,130.01,17.07864744]
[1744651302025,80.8,130.05,130.02,17.07864744]
[1744651302217,80.8,130.05,130.01,17.07864744]
[1744651302417,18.79181043,130.0,129.88,1.5417]
[1744651302602,80.8,129.99,129.93,17.07864744]
[1744651302806,17.07864744,129.97,129.9,30.0]
[1744651303026,17.07864744,129.97,129.92,24.77554744]
[1744651303231,17.07864744,129.98,129.93,17.07864744]
[1744651303424,105.57154744,129.99,129.93,17.07864744]
[1744651303819,105.57154744,129.99,129.94,17.07864744]
[1744651304131,105.57154744,129.99,129.92,7.6969]
[1744651304132,80.8,129.99,129.95,17.07864744]
[1744651304717,17.07864744,129.98,129.93,24.97864744]
[1744651305127,105.57154744,129.99,129.93,24.97864744]
[1744651305440,105.57154744,129.99,129.94,17.07864744]
[1744651305927,96.43266307,129.99,129.94,17.07864744]
[1744651306424,17.07864744,129.96,129.91,17.07864744]
[1744651307233,7.6952,129.95,129.9,26.0]
[1744651307428,24.77344744,129.96,129.91,17.07864744]
[1744651307629,17.07864744,129.95,129.9,17.07864744]
[1744651307823,24.77344744,129.96,129.91,17.07864744]
[1744651308816,17.07864744,129.93,129.88,1.5417]
[1744651309015,17.07864744,129.93,129.88,26.31954744]
[1744651309232,17.07864744,129.94,129.89,17.07864744]
[1744651309830,88.73976307,129.95,129.9,17.07864744]
[1744651310637,88.73976307,129.95,129.9,7.6977]
[1744651310844,71.66111563,129.95,129.9,24.77634744]
[1744651311142,71.66111563,129.95,129.91,17.07864744]
[1744651312248,88.73976307,129.95,129.9,24.77634744]
[1744651312723,17.07864744,129.94,129.9,7.6977]
[1744651312922,17.07864744,129.94,129.89,24.77704744]
[1744651313128,79.35641563,129.95,129.88,7.6993]
[1744651313129,17.07864744,129.92,129.88,7.6993]
[1744651313639,17.07864744,129.93,129.88,24.77794744]
[1744651313847,17.07864744,129.94,129.9,17.07864744]